[Event "28th Hit Open-A 2024"]
[Site "Nova Gorica"]
[Date "2024.01.27"]
[Round "3.39"]
[White "Zlatanovic, Marcus"]
[Black "Bajec, Borut"]
[Result "0-1"]
[ECO "B54"]
[WhiteElo "1745"]
[BlackElo "1703"]
[Annotator "NA RC COMBH"]
[PlyCount "100"]
[EventDate "2024.01.22"]
[EventType "swiss"]
[EventCountry "SLO"]
[SourceTitle "playchess.com"]
[Source "ChessBase"]
[SourceQuality "1"]
[TimeControl "5400+30"]

1. e4 {[%emt 0:00:05]} c5 {[%emt 0:11:26]} 2. Nf3 {[%emt 0:00:09]} Nc6 {[%emt 0:00:12]} 3. d4 {[%emt 0:00:13]} cxd4 {[%emt 0:00:13]} 4. Nxd4 {[%emt 0:00:05]} d6 {[%emt 0:00:11]} 5. c4 {[%emt 0:00:10]} Nf6 {[%emt 0:00:29]} 6. Nc3 {[%emt 0:00:06]} e6 {[%emt 0:00:14]} 7. Be3 {[%emt 0:00:13]} Be7 {[%emt 0:00:30]} 8. Be2 {[%emt 0:00:14]} O-O {[%emt 0:01:04]} 9. O-O {[%emt 0:00:05]} Bd7 {[%emt 0:00:46]} 10. f4 {[%emt 0:00:22]} a6 {[%emt 0:00:44]} 11. a3 {[%emt 0:04:33]} Rc8 {[%emt 0:01:02]} 12. b4 {[%emt 0:00:36]} Nxd4 {[%emt 0:03:16]} 13. Qxd4 {[%emt 0:01:54]} Qc7 {[%emt 0:00:55]} 14. Rac1 {[%emt 0:02:30]} Rfd8 {[%emt 0:03:15]} 15. h3 {[%emt 0:21:42]} h6 {[%emt 0:01:12]} 16. Rfd1 {[%emt 0:00:45]} Qb8 {[%emt 0:03:57]} 17. Qd3 {[%emt 0:15:22]} b6 {[%emt 0:05:27]} 18. Qd4 {[%emt 0:04:43]} Bc6 {[%emt 0:00:12]} 19. Qxb6 {[%emt 0:01:35]} Nxe4 {[%emt 0:00:10]} 20. Nxe4 {[%emt 0:01:19]} Bxe4 {[%emt 0:00:15]} 21. Qxa6 {[%emt 0:00:58]} Rd7 {[%emt 0:01:36]} 22. Qa4 {[%emt 0:14:59]} Rdc7 {[%emt 0:02:07]} 23. Qb3 {[%emt 0:12:13]} Qb7 {[%emt 0:00:48]} 24. Bf1 {[%emt 0:00:31]} d5 {[%emt 0:01:03]} 25. c5 {[%emt 0:00:11]} Bxc5 {[%emt 0:00:15]} 26. Bxc5 {[%emt 0:00:15]} Rxc5 {[%emt 0:00:07]} 27. Qe3 {[%emt 0:00:18]} d4 {[%emt 0:03:36]} 28. Qe1 {[%emt 0:00:55]} Rc3 {[%emt 0:02:38]} 29. Rxc3 {[%emt 0:01:19]} dxc3 {[%emt 0:03:35]} 30. Rc1 {[%emt 0:00:16]} c2 {[%emt 0:01:44]} 31. Ba6 {[%emt 0:01:59]} Qxa6 {[%emt 0:03:29]} 32. Qxe4 {[%emt 0:00:05]} Qxa3 {[%emt 0:00:36]} 33. Rxc2 {[%emt 0:00:12]} Rxc2 {[%emt 0:00:40]} 34. Qxc2 {[%emt 0:00:05]} Qxb4 {[%emt 0:00:10]} 35. Qc8+ {[%emt 0:00:17]} Kh7 {[%emt 0:00:07]} 36. Qd7 {[%emt 0:00:10]} Qxf4 {[%emt 0:00:25]} 37. Qd3+ {[%emt 0:00:25]} Qf5 {[%emt 0:00:28]} 38. Qd7 {[%emt 0:00:14]} h5 {[%emt 0:00:41]} 39. Qc8 {[%emt 0:00:35]} g5 {[%emt 0:00:53]} 40. Qd7 {[%emt 0:00:16]} g4 {[%emt 0:00:40]} 41. hxg4 {[%emt 0:00:17]} hxg4 {[%emt 0:00:09]} 42. Qd8 {[%emt 0:01:05]} e5 {[%emt 0:01:14]} 43. Qe7 {[%emt 0:01:10]} Kg7 {[%emt 0:01:18]} 44. Qh4 {[%emt 0:00:56]} e4 {[%emt 0:01:05]} 45. Qg3 {[%emt 0:00:42]} Kg6 {[%emt 0:01:17]} 46. Qe3 {[%emt 0:00:18]} f6 {[%emt 0:00:36]} 47. Kh1 {[%emt 0:01:20]} Qe5 {[%emt 0:00:20]} 48. g3 {[%emt 0:00:19]} Qf5 {[%emt 0:00:24]} 49. Qb3 {[%emt 0:00:32]} Qf3+ {[%emt 0:00:20]} 50. Qxf3 {[%emt 0:00:10]} gxf3 {[%emt 0:00:11]} 0-1

[Event "28th Hit Open-A 2024"]
[Site "Nova Gorica"]
[Date "2024.01.27"]
[Round "3.40"]
[White "Guid, Taja"]
[Black "Cokan, Mirko"]
[Result "1/2-1/2"]
[ECO "C47"]
[WhiteElo "1698"]
[BlackElo "1614"]
[Annotator "NA RC COMBH"]
[PlyCount "77"]
[EventDate "2024.01.22"]
[EventType "swiss"]
[EventCountry "SLO"]
[SourceTitle "playchess.com"]
[Source "ChessBase"]
[SourceQuality "1"]
[TimeControl "5400+30"]

1. e4 {[%emt 0:00:02]} Nc6 {[%emt 0:10:31]} 2. d4 {[%emt 0:01:33]} e5 {[%emt 0:00:31]} 3. d5 {[%emt 0:01:28]} Nce7 {[%emt 0:00:59]} 4. Nf3 {[%emt 0:04:56]} Ng6 {[%emt 0:01:06]} 5. Nc3 {[%emt 0:06:24]} Bb4 {[%emt 0:00:55]} 6. a3 {[%emt 0:00:51]} Bxc3+ {[%emt 0:00:45]} 7. bxc3 {[%emt 0:00:06]} Nf6 {[%emt 0:00:16]} 8. Bd3 {[%emt 0:00:37]} O-O {[%emt 0:00:59]} 9. O-O {[%emt 0:00:54]} d6 {[%emt 0:00:26]} 10. h3 {[%emt 0:04:02]} h6 {[%emt 0:07:09]} 11. Nh2 {[%emt 0:05:52]} Nh7 {[%emt 0:03:45]} 12. Rb1 {[%emt 0:03:46]} b6 {[%emt 0:00:31]} 13. c4 {[%emt 0:06:50]} a5 {[%emt 0:00:35]} 14. Rb3 {[%emt 0:02:05]} Ne7 {[%emt 0:03:00]} 15. f4 {[%emt 0:01:24]} exf4 {[%emt 0:05:01]} 16. Bxf4 {[%emt 0:00:35]} Ng6 {[%emt 0:00:39]} 17. Bg3 {[%emt 0:05:05]} f6 {[%emt 0:05:02]} 18. Nf3 {[%emt 0:02:41]} Ne5 {[%emt 0:01:19]} 19. Nd4 {[%emt 0:02:09]} Bd7 {[%emt 0:00:53]} 20. Kh2 {[%emt 0:02:35]} Qe8 {[%emt 0:03:19]} 21. Qe2 {[%emt 0:04:10]} Qe7 {[%emt 0:05:28]} 22. Bf4 {[%emt 0:04:05]} g5 {[%emt 0:02:26]} 23. Bg3 {[%emt 0:00:45]} Qg7 {[%emt 0:02:31]} 24. Rbb1 {[%emt 0:05:58]} Rae8 {[%emt 0:00:48]} 25. Qd2 {[%emt 0:01:34]} h5 {[%emt 0:01:41]} 26. Nf5 {[%emt 0:05:30]} Bxf5 {[%emt 0:01:57]} 27. Rxf5 {[%emt 0:01:02]} Nf7 {[%emt 0:02:17]} 28. Rff1 {[%emt 0:05:46]} h4 {[%emt 0:01:33]} 29. Bf2 {[%emt 0:00:27]} Ne5 {[%emt 0:00:19]} 30. Rbe1 {[%emt 0:02:28]} Rf7 {[%emt 0:00:28]} 31. Be2 {[%emt 0:00:37]} Nf8 {[%emt 0:00:34]} 32. Qd4 {[%emt 0:01:35]} Nfg6 {[%emt 0:00:29]} 33. Bh5 {[%emt 0:00:46]} Qh6 {[%emt 0:00:08]} 34. Bxg6 {[%emt 0:00:36]} Nxg6 {[%emt 0:00:26]} 35. Be3 {[%emt 0:00:23]} Ne5 {[%emt 0:01:05]} 36. Rf5 {[%emt 0:00:48]} Rg7 {[%emt 0:01:25]} 37. Ref1 {[%emt 0:00:17]} Rg6 {[%emt 0:01:29]} 38. Bd2 {[%emt 0:01:39]} Qg7 {[%emt 0:00:02]} 39. Be1 {[%emt 0:02:23]} 1/2-1/2

[Event "28th Hit Open-A 2024"]
[Site "Nova Gorica"]
[Date "2024.01.27"]
[Round "3.41"]
[White "Vodnik, Val"]
[Black "Gratton, Damjan"]
[Result "1-0"]
[ECO "E06"]
[WhiteElo "1661"]
[BlackElo "1691"]
[Annotator "NA RC COMBH"]
[PlyCount "53"]
[EventDate "2024.01.22"]
[EventType "swiss"]
[EventCountry "SLO"]
[SourceTitle "playchess.com"]
[Source "ChessBase"]
[SourceQuality "1"]
[TimeControl "5400+30"]

1. d4 {[%emt 0:00:02]} Nf6 {[%emt 0:00:51]} 2. c4 {[%emt 0:00:03]} e6 {[%emt 0:00:16]} 3. Nf3 {[%emt 0:00:04]} Nc6 {[%emt 0:01:20]} 4. g3 {[%emt 0:01:02]} d5 {[%emt 0:00:22]} 5. Bg2 {[%emt 0:00:39]} Be7 {[%emt 0:00:53]} 6. Qc2 {[%emt 0:01:29]} O-O {[%emt 0:00:35]} 7. O-O {[%emt 0:00:03]} h6 {[%emt 0:00:19]} 8. Rd1 {[%emt 0:00:38]} Nb4 {[%emt 0:00:44]} 9. Qb3 {[%emt 0:00:38]} c5 {[%emt 0:00:39]} 10. Nc3 {[%emt 0:01:23]} cxd4 {[%emt 0:05:34]} 11. Nxd4 {[%emt 0:03:48]} e5 {[%emt 0:03:40]} 12. Nc2 {[%emt 0:01:04]} Nxc2 {[%emt 0:00:57]} 13. Qxc2 {[%emt 0:00:02]} d4 {[%emt 0:00:30]} 14. e3 {[%emt 0:00:23]} Bc5 {[%emt 0:00:33]} 15. Na4 {[%emt 0:01:13]} Qd6 {[%emt 0:00:43]} 16. a3 {[%emt 0:01:41]} a6 {[%emt 0:00:23]} 17. b4 {[%emt 0:00:08]} Ba7 {[%emt 0:00:40]} 18. c5 {[%emt 0:00:05]} Qd8 {[%emt 0:01:03]} 19. exd4 {[%emt 0:01:04]} exd4 {[%emt 0:04:27]} 20. Bb2 {[%emt 0:00:17]} Qc7 {[%emt 0:00:35]} 21. Rxd4 {[%emt 0:00:53]} Bd7 {[%emt 0:00:40]} 22. Rad1 {[%emt 0:01:22]} Rac8 {[%emt 0:01:44]} 23. Rh4 {[%emt 0:03:35]} Nh7 {[%emt 0:02:39]} 24. Bd5 {[%emt 0:00:43]} Be6 {[%emt 0:04:41]} 25. Bxe6 {[%emt 0:00:29]} fxe6 {[%emt 0:00:14]} 26. Qg6 {[%emt 0:00:38]} Ng5 {[%emt 0:02:09]} 27. Rxh6 {[%emt 0:00:43]} 1-0

[Event "28th Hit Open-A 2024"]
[Site "Nova Gorica"]
[Date "2024.01.28"]
[Round "4.1"]
[White "Beliavsky, Alexander G"]
[Black "Berkes, Ferenc"]
[Result "1/2-1/2"]
[ECO "E11"]
[WhiteElo "2475"]
[BlackElo "2613"]
[Annotator "TA"]
[PlyCount "39"]
[EventDate "2024.01.22"]
[EventType "swiss"]
[EventCountry "SLO"]
[SourceTitle "playchess.com"]
[Source "ChessBase"]
[SourceQuality "1"]
[TimeControl "5400+30"]

{[%evp 15,39,16,20,11,20,0,11,8,29,29,37,29,38,27,36,36,29,31,31,0,20,0,10,0,28,26]} 1. d4 {[%emt 0:00:04]} Nf6 {[%emt 0:00:05]} 2. c4 {[%emt 0:00:08]} e6 {[%emt 0:00:08]} 3. Nf3 {[%emt 0:00:14]} Bb4+ {[%emt 0:00:09]} 4. Bd2 {[%emt 0:00:19]} Bxd2+ {[%emt 0:00:10]} 5. Qxd2 {[%emt 0:01:32]} O-O {[%emt 0:00:08]} 6. Nc3 {[%emt 0:00:33]} d5 {[%emt 0:00:09]} 7. e3 {[%emt 0:00:29]} Qe7 {[%emt 0:00:10]} 8. Rc1 {[%emt 0:02:15]} Rd8 {[%emt 0:01:25]} 9. cxd5 {[%emt 0:01:12]} exd5 {[%emt 0:00:17]} 10. Be2 {[%emt 0:07:30]} Bf5 {[%emt 0:04:37]} 11. O-O {[%emt 0:02:06] Die Stellung ist ausgeglichen.} Nc6 {[%emt 0:04:32]} 12. Qd1 {[%emt 0:06:40]} a6 {[%emt 0:10:37]} 13. Na4 {[%emt 0:01:48]} Rd6 {[%emt 0:08:32]} 14. Nc5 {[%emt 0:00:49]} Rb8 {[%emt 0:00:08]} 15. Qa4 {[%emt 0:04:12]} Ne4 {[%emt 0:03:50]} 16. Qa3 {[%emt 0:03:51][%cal Oc5b7]} Qd8 {[%emt 0:09:27]} 17. Rfe1 {[%emt 0:11:58]} Ne7 {[%emt 0:14:55]} 18. Nxe4 {[%emt 0:04:30]} Bxe4 {[%emt 0:00:05]} 19. Nd2 {[%emt 0:00:11]} Bg6 {[%emt 0:00:17]} 20. Qa5 {[%emt 0:01:47] Gewichteter Fehlerwert: Weiß=0.09 (makellos) /Schwarz=0.10 (sehr präzise) .  Ungenau:       	Weiß=1     	Schwarz=1     OK:         	Weiß=4     	Schwarz=2} 1/2-1/2

[Event "28th Hit Open-A 2024"]
[Site "Nova Gorica"]
[Date "2024.01.28"]
[Round "4.2"]
[White "Sebenik, Matej"]
[Black "Ceres, Dragos"]
[Result "0-1"]
[ECO "E95"]
[WhiteElo "2536"]
[BlackElo "2438"]
[Annotator "TA"]
[PlyCount "86"]
[EventDate "2024.01.22"]
[EventType "swiss"]
[EventCountry "SLO"]
[SourceTitle "playchess.com"]
[Source "ChessBase"]
[SourceQuality "1"]
[TimeControl "5400+30"]

{[%evp 18,86,49,25,34,13,30,28,59,37,56,35,45,50,85,76,82,70,79,68,98,16,16,-13,96,97,102,76,96,0,9,0,0,0,0,0,0,0,0,0,0,0,6,-17,27,0,0,-35,-47,-34,-39,-43,-36,-44,-26,-98,0,0,0,0,0,0,0,0,0,-99,-103,-100,-104,-743,-743]} 1. c4 {[%emt 0:00:08]} Nf6 {[%emt 0:00:09]} 2. Nf3 {[%emt 0:00:18]} g6 {[%emt 0:00:12]} 3. Nc3 {[%emt 0:00:37]} Bg7 {[%emt 0:00:06]} 4. e4 {[%emt 0:00:05]} d6 {[%emt 0:00:10]} 5. d4 {[%emt 0:00:05]} O-O {[%emt 0:00:05]} 6. Be2 {[%emt 0:00:05]} Nbd7 {[%emt 0:00:06]} 7. O-O {[%emt 0:00:11]} e5 {[%emt 0:00:04]} 8. Re1 {[%emt 0:00:10]} exd4 {[%emt 0:00:51]} 9. Nxd4 {[%emt 0:00:06]} Re8 {[%emt 0:00:05]} 10. Bf1 {[%emt 0:00:09]} a6 {[%emt 0:00:06][%cal Ba7a6,Ba6a5][%mdl 32]} 11. Bg5 {[%emt 0:13:36]} c6 {[%emt 0:03:02]} 12. Qd2 {[%emt 0:02:57]} Nc5 {[%emt 0:01:00][%cal Od8b6] White has an edge.} 13. f3 {[%emt 0:12:52][%cal Bf2f3,Bf3f4][%mdl 32]} Qc7 {[%emt 0:08:20]} 14. Kh1 {[%emt 0:09:24]} Nfd7 {[%emt 0:09:33]} 15. Bh6 {[%emt 0:05:53] Strongly threatening Bxg7.} a5 {[%emt 0:04:30]} 16. Bxg7 {[%emt 0:00:34]} Kxg7 {[%emt 0:00:06]} 17. b3 {[%emt 0:01:12]} Ne5 {[%emt 0:01:52][%cal Bd7e5,Be5g4,Bg4f6][%mdl 32]} 18. f4 {[%emt 0:17:39]} Ng4 {[%emt 0:00:42]} 19. Qb2 {[%emt 0:00:06]} (19. h3 $16 Nf6 20. Bd3) 19... Kg8 $11 {[%emt 0:07:27]} 20. Rad1 {[%emt 0:00:07]} Qb6 {[%emt 0:07:51]} (20... Nf6 $11 {remains equal.}) 21. h3 $16 {[%emt 0:14:20]} Nf6 {[%emt 0:03:15]} 22. e5 {[%emt 0:01:37]} dxe5 {[%emt 0:00:32]} 23. Rxe5 {[%emt 0:00:04]} (23. fxe5 $16 Nfd7 24. e6 fxe6 25. Nf3) 23... Bd7 $11 {[%emt 0:04:26]} 24. Nf3 {[%emt 0:00:10]} Rxe5 {[%emt 0:04:52]} 25. fxe5 {[%emt 0:11:09]} Nfe4 {[%emt 0:01:21]} 26. Nxe4 {[%emt 0:01:17]} Nxe4 {[%emt 0:00:06]} 27. Kh2 {[%emt 0:00:03]} (27. Rxd7 $5 Ng3+ $8 28. Kh2 Nxf1+ 29. Kh1 Ng3+ 30. Kh2 Nf1+ 31. Kh1 Ng3+ 32. Kh2 Nf1+ $11) 27... Be6 {[%emt 0:03:58]} 28. Rd4 {[%emt 0:00:20]} Nc5 {[%emt 0:04:14]} 29. Qd2 {[%emt 0:00:04]} Qc7 {[%emt 0:02:10]} 30. Kg1 {[%emt 0:00:10]} Nd7 {[%emt 0:01:33]} 31. Kh1 {[%emt 0:05:40]} Re8 {[%emt 0:01:05]} (31... Nxe5 $2 32. Qf4 $18) 32. Rd6 {[%emt 0:02:54]} Bf5 {[%emt 0:01:54]} 33. Qd4 {[%emt 0:00:35]} c5 {[%emt 0:05:37]} 34. Qd5 {[%emt 0:00:03]} Re7 {[%emt 0:00:06]} (34... Kg7 {keeps more tension.} 35. Kg1 Re7 36. g4 Nxe5 37. Nxe5 Be4) 35. Kg1 $1 {[%emt 0:02:19]} Kg7 {[%emt 0:01:24][%cal Od7e5]} 36. Bd3 {[%emt 0:00:56]} (36. g4 $1 $11 Nxe5 37. Nxe5) 36... Bxd3 {[%emt 0:00:51]} ({Black should try} 36... Nb6 $17 37. Rxb6 Qxb6 38. Bxf5 gxf5) 37. Qxd3 {[%emt 0:00:04]} Nxe5 {[%emt 0:00:16]} 38. Nxe5 {[%emt 0:00:12]} Rxe5 $17 {[%emt 0:00:05] KQR-KQR} 39. Rd7 $1 {[%emt 0:00:08]} Re1+ {[%emt 0:07:36]} 40. Kf2 {[%emt 0:00:06]} Qe5 {[%emt 0:00:03] [#] Threatens to win with ...Rc1.} 41. Rd5 {[%emt 0:01:40]} (41. Qf3 $1 $11 Qe8 42. Rxb7) 41... Qa1 {[%emt 0:00:11] Black is more active.} 42. Rxc5 {[%emt 0:00:39]} Rc1 {[%emt 0:05:13]} (42... Qxa2+ $2 43. Kxe1 Qa1+ 44. Kf2 $18) 43. Rd5 $2 {[%emt 0:00:43][%mdl 8192]} (43. Rxa5 $2 {perishes.} Qb2+ 44. Kg3 Rc3 $19) (43. Qd2 $17) 43... Qb2+ {[%emt 0:00:29] Weighted Error Value: White=0.33/Black=0.18 (very precise) .  Loses game:     	White=1     	---        Mistake:       	White=4     	Black=2      Inaccurate:     	White=3     	Black=4      OK:         	White=12    	Black=11     Best:        	White=2     	Black=3      Strong:       	White=2     	---} ({Weaker is} 43... Qxa2+ 44. Ke3 $19) 0-1

[Event "28th Hit Open-A 2024"]
[Site "Nova Gorica"]
[Date "2024.01.28"]
[Round "4.3"]
[White "Fercec, Nenad"]
[Black "Basso, Pier Luigi"]
[Result "1/2-1/2"]
[ECO "C65"]
[WhiteElo "2410"]
[BlackElo "2482"]
[Annotator "RC"]
[PlyCount "52"]
[EventDate "2024.01.22"]
[EventType "swiss"]
[EventCountry "SLO"]
[SourceTitle "playchess.com"]
[Source "ChessBase"]
[SourceQuality "1"]
[TimeControl "5400+30"]

1. e4 {[%emt 0:00:21]} e5 {[%emt 0:00:06]} 2. Nf3 {[%emt 0:00:08]} Nc6 {[%emt 0:00:04]} 3. Bb5 {[%emt 0:00:10]} Nf6 {[%emt 0:00:21]} 4. d3 {[%emt 0:00:28]} Bc5 {[%emt 0:00:09]} 5. Bxc6 {[%emt 0:00:21]} dxc6 {[%emt 0:00:06]} 6. c3 {[%emt 0:00:07]} Qe7 {[%emt 0:12:14]} 7. O-O {[%emt 0:00:23]} Bd6 {[%emt 0:03:43]} 8. Nbd2 {[%emt 0:00:20]} O-O {[%emt 0:03:14]} 9. Nc4 {[%emt 0:03:35]} Nd7 {[%emt 0:04:51]} 10. d4 {[%emt 0:09:18]} f6 {[%emt 0:04:36]} 11. Nxd6 {[%emt 0:05:42]} cxd6 {[%emt 0:00:23]} 12. b3 {[%emt 0:03:09]} exd4 {[%emt 0:05:59]} 13. Nxd4 {[%emt 0:01:12]} Nc5 {[%emt 0:02:27]} 14. Bf4 {[%emt 0:08:03]} Rd8 {[%emt 0:03:32]} 15. Re1 {[%emt 0:02:22]} Qf7 {[%emt 0:04:15]} 16. Qf3 {[%emt 0:17:29]} Ne6 {[%emt 0:06:25]} 17. Rad1 {[%emt 0:01:31]} Nxf4 {[%emt 0:00:30]} 18. Qxf4 {[%emt 0:00:08]} Be6 {[%emt 0:00:44]} 19. Re3 {[%emt 0:01:01]} Rd7 {[%emt 0:00:15]} 20. Red3 {[%emt 0:03:14]} Rad8 {[%emt 0:00:19]} 21. h3 {[%emt 0:03:31]} a6 {[%emt 0:04:40]} 22. c4 {[%emt 0:00:38]} Qe7 {[%emt 0:06:54]} 23. f3 {[%emt 0:01:01]} g6 {[%emt 0:01:59]} 24. Nxe6 {[%emt 0:01:11]} Qxe6 {[%emt 0:00:05]} 25. Qd2 {[%emt 0:00:12]} Qe5 {[%emt 0:01:57]} 26. Rd4 {[%emt 0:00:46]} g5 {[%emt 0:07:00]} 1/2-1/2

[Event "28th Hit Open-A 2024"]
[Site "Nova Gorica"]
[Date "2024.01.28"]
[Round "4.4"]
[White "Csonka, Balazs"]
[Black "Drazic, Sinisa"]
[Result "1/2-1/2"]
[ECO "C54"]
[WhiteElo "2479"]
[BlackElo "2270"]
[Annotator "TA"]
[PlyCount "75"]
[EventDate "2024.01.22"]
[EventType "swiss"]
[EventCountry "SLO"]
[SourceTitle "playchess.com"]
[Source "ChessBase"]
[SourceQuality "1"]
[TimeControl "5400+30"]

{[%evp 12,75,33,12,45,33,29,20,37,14,27,24,30,35,36,41,58,54,63,47,54,38,50,48,66,40,43,43,32,24,16,7,56,53,58,56,55,42,42,35,43,43,44,27,38,33,36,39,39,39,46,15,58,19,31,22,23,19,23,16,35,45,48,0,0,0]} 1. e4 {[%emt 0:00:03]} e5 {[%emt 0:00:56]} 2. Nf3 {[%emt 0:00:18]} Nc6 {[%emt 0:00:05]} 3. Bc4 {[%emt 0:00:55]} Nf6 {[%emt 0:00:06]} 4. d3 {[%emt 0:00:19]} Bc5 {[%emt 0:00:17]} 5. c3 {[%emt 0:00:25]} Bb6 {[%emt 0:00:27]} 6. O-O {[%emt 0:00:54]} d6 {[%emt 0:00:27]} 7. a4 {[%emt 0:02:57][%cal Ba2a4,Ba4a5][%mdl 32]} a6 {[%emt 0:01:32]} 8. Re1 {[%emt 0:01:39]} h6 {[%emt 0:00:32]} 9. Nbd2 {[%emt 0:03:28][%cal Bb1d2,Bd2f1,Bf1g3][%mdl 32]} O-O {[%emt 0:00:07]} 10. h3 {[%emt 0:01:47]} Ne7 {[%emt 0:01:57]} 11. a5 {[%emt 0:02:08]} Ba7 {[%emt 0:00:02]} 12. Nf1 {[%emt 0:00:29]} Ng6 {[%emt 0:01:46]} 13. Ng3 {[%emt 0:02:56]} Bd7 {[%emt 0:01:48]} 14. d4 {[%emt 0:13:15]} Bc6 {[%emt 0:05:32]} 15. Bd3 {[%emt 0:04:05] White is more active.} Re8 {[%emt 0:01:55]} 16. Be3 {[%emt 0:07:13]} exd4 {[%emt 0:03:14]} 17. Bxd4 {[%emt 0:00:29]} Ne5 {[%emt 0:00:43]} 18. Nxe5 {[%emt 0:05:30]} dxe5 {[%emt 0:00:06]} 19. Bxa7 {[%emt 0:00:06]} Rxa7 {[%emt 0:00:06]} 20. Qf3 {[%emt 0:01:55]} Ra8 {[%emt 0:03:57]} 21. Bc4 {[%emt 0:07:59] [#] Rad1 would now be deadly.} Bd7 {[%emt 0:11:13]} (21... g6 $1 $11) 22. Nh5 $14 {[%emt 0:02:04] And now Rad1 would win.} Qe7 {[%emt 0:00:10]} 23. Nxf6+ {[%emt 0:01:01]} Qxf6 {[%emt 0:00:09]} 24. Qxf6 {[%emt 0:00:05]} gxf6 {[%emt 0:00:04]} 25. Bd5 {[%emt 0:03:39]} c6 {[%emt 0:00:06]} 26. Bc4 {[%emt 0:02:23]} Rad8 {[%emt 0:01:25]} 27. Red1 {[%emt 0:06:53]} Be6 {[%emt 0:00:49]} 28. Bxe6 {[%emt 0:00:36]} fxe6 {[%emt 0:00:02][%mdl 4096] Endgame. KRR-KRR} 29. Kf1 {[%emt 0:00:55]} Kf7 {[%emt 0:00:16]} 30. Ke2 {[%emt 0:00:13]} Ke7 {[%emt 0:00:02]} 31. g3 {[%emt 0:09:55]} Rg8 {[%emt 0:03:12]} 32. Ke3 {[%emt 0:07:21]} h5 {[%emt 0:01:07]} 33. Ke2 {[%emt 0:01:48]} Rh8 {[%emt 0:00:14]} 34. Rxd8 {[%emt 0:03:41]} Rxd8 {[%emt 0:00:01]} 35. Rd1 {[%emt 0:00:08] aiming for Rxd8.} Rh8 {[%emt 0:03:02]} 36. c4 {[%emt 0:03:09]} f5 {[%emt 0:01:46]} 37. exf5 {[%emt 0:02:43]} (37. h4 $14 {feels stronger.}) 37... exf5 $11 {[%emt 0:00:01]} 38. Kf3 {[%emt 0:00:13] Weighted Error Value: White=0.11 (very precise) /Black=0.10 (very precise) .  Mistake:       	White=1     	Black=1      Inaccurate:     	White=3     	Black=1      OK:         	White=9     	Black=9      Best:        	---       	Black=1} 1/2-1/2